Cogmind - Beta 14 @@@ ROGUE MODE // 2025.03.24 @ 13:48:34 // Winter2019/RPGLIKE Player: Lava Result: Destroyed by G-47 Trooper with Particle Gun Performance ------------- Evolutions (2) 1000 Regions Visited (7) 1400 Robots Destroyed (94) 470 Value Destroyed (3078) 3078 Prototype IDs (24) 480 Alien Tech Used (0) 0 Bonus (470) 470 TOTAL SCORE: 6898 Bonus ------- High Alert Combat Kills 120 Follower Combat Kills 50 Aligned with FarCom 300 Cogmind --------- Core Integrity 0/850 Matter 197/300 Energy 280/280 System Corruption 0% Temperature Warm (114) Movement Treading (145) Location -8/Materials Parts ------- > --- POWER (1) -------- Heavy Ion Engine > --- PROPULSION (2) --- Advanced Treads Advanced Treads > --- UTILITY (4) ------ Improved Sensor Array Improved Signal Interpreter Hacking Suite Skeleton Box > --- WEAPON (2) ------- Minigun Minigun > --- INVENTORY (3) ---- Advanced EMP Blaster Missile Launcher Makeshift Hammer Peak State ------------ > --- POWER ------------ Heavy Ion Engine > --- PROPULSION ------- Advanced Treads Advanced Treads > --- UTILITY ---------- Improved Sensor Array Improved Signal Interpreter Hacking Suite Skeleton Box > --- WEAPON ----------- Minigun Minigun > --- INVENTORY -------- Advanced EMP Blaster Missile Launcher Makeshift Hammer [Rating: 31] Favorites ----------- Power Heavy Ion Engine Engine Heavy Ion Engine Propulsion Advanced Treads Treads Advanced Treads Utility Sensor Array Device Sensor Array Processor Signal Interpreter Hackware Hacking Suite Protection Weapon Shielding Weapon Minigun Ballistic Gun Minigun Ballistic Cannon Light Cannon Launcher Missile Launcher Build | -11 -10 -10 -9 -9 -9 -8 -8 ------- Run | Yrd Mat Min Mat Min Exi Min Mat Slots Evolved 5 | 3 . . 1 . . . 1 Power . | . . . . . . . . Propulsion 1 | 1 . . . . . . . Utility 3 | 1 . . 1 . . . 1 Weapon 1 | 1 . . . . . . . Parts Attached 31 | 5 8 . 7 . 1 2 8 Power 2 | 1 . . 1 . . . . Engine 2 | 1 . . 1 . . . . Core . | . . . . . . . . Reactor . | . . . . . . . . Propulsion 6 | 2 . . 2 . . . 2 Treads 6 | 2 . . 2 . . . 2 Leg . | . . . . . . . . Wheel . | . . . . . . . . Hover . | . . . . . . . . Flight . | . . . . . . . . Utility 9 | . 3 . 2 . 1 . 3 Device 4 | . 1 . 1 . 1 . 1 Storage . | . . . . . . . . Processor 2 | . 1 . . . . . 1 Hackware 1 | . . . . . . . 1 Protection 2 | . 1 . 1 . . . . Artifact . | . . . . . . . . Weapon 14 | 2 5 . 2 . . 2 3 Energy Gun . | . . . . . . . . Energy Cannon . | . . . . . . . . Ballistic Gun 10 | 2 3 . 2 . . 1 2 Ballistic Cannon 2 | . 2 . . . . . . Launcher 2 | . . . . . . 1 1 Special Weapon . | . . . . . . . . Impact Weapon . | . . . . . . . . Slashing Weapon . | . . . . . . . . Piercing Weapon . | . . . . . . . . Special Melee Weapon . | . . . . . . . . Unidentified Prototypes 1 | . . . 1 . . . . Parts Lost . | . . . . . . . . Power . | . . . . . . . . Propulsion . | . . . . . . . . Utility . | . . . . . . . . Weapon . | . . . . . . . . Highest Loss Streak . | . . . . . . . . To Critical Strikes . | . . . . . . . . Average Slot Usage (%) 97 | . 92 100 98 100 100 100 100 Engine 12 | . 14 14 12 12 12 12 11 Treads 25 | . 28 28 25 25 25 25 22 Device 19 | . 11 14 23 25 25 25 22 Processor 10 | . 5 14 12 12 12 12 11 Hackware 1 | . . . . . . . 11 Ballistic Gun 24 | . 24 28 25 25 25 25 21 Peak Build Rating 31 | 5 9 9 20 20 24 24 31 Average Rating 15 | 2 6 9 16 20 21 24 29 On Entrance 13 | . 5 9 9 20 20 24 24 Naked Turns . | . . . . . . . . Heaviest Build 17 | 8 12 12 17 17 17 17 17 Greatest Support 44 | 40 40 40 44 44 44 44 44 Greatest Overweight (x) . | . . . . . . . . Average Overweight (x) . | . . . . . . . . Largest Inventory Capacity 3 | 3 3 3 3 3 3 3 3 Average Capacity 3 | 3 3 3 3 3 3 3 3 Most Carried 3 | 3 3 3 3 3 3 3 3 Average Carried 2 | 1 1 2 2 3 3 3 2 Final Capacity 3 | 3 3 3 3 3 3 3 3 Final Carried 3 | . 3 3 3 3 3 3 3 Class Distribution -------------------- 86% | Mutant 13% | Skirmisher Dominant Class ---------------- Mutant | -10/Materials Mutant | -10/Mines Mutant | -9/Materials Mutant | -9/Mines Mutant | -9/Exiles Skirmisher | -8/Mines Skirmisher | -8/Materials Resources | -11 -10 -10 -9 -9 -9 -8 -8 ----------- Run | Yrd Mat Min Mat Min Exi Min Mat Matter Collected 2211 | 250 284 56 937 266 . 2 416 Remotely . | . . . . . . . . Salvage Created 3258 | . 432 168 1540 239 . 2 877 Parts 215 | . 22 11 110 15 . 3 54 Haulers Intercepted 1 | . . . 1 . . . . Recyclers Shooed . | . . . . . . . . Parts Field Recycled . | . . . . . . . . Retrieved Matter . | . . . . . . . . Parts Self-Destructed . | . . . . . . . . Prevented . | . . . . . . . . Kills | -11 -10 -10 -9 -9 -9 -8 -8 ------- Run | Yrd Mat Min Mat Min Exi Min Mat Combat Hostiles Destroyed 77 | . 8 5 35 10 . 3 16 Guns 71 | . 8 5 35 10 . . 13 AOE 6 | . . . . . . 3 3 Classes Destroyed 10 | . 4 . 2 1 . . 3 Builder 1 | . . . . . . . 1 Hauler 1 | . . . 1 . . . . Operator 3 | . 1 . 2 . . . . Watcher 12 | . 3 . 5 . . . 4 Swarmer 13 | . 3 3 . 4 . 3 . Grunt 47 | . 5 2 25 5 . . 10 Duelist 2 | . . . . . . . 2 Sentry 13 | . . . 10 . . . 3 Demolisher 1 | . . . . 1 . . . Hunter 1 | . . . . . . . 1 Best Kill Streak 5 | . 3 3 4 4 . 3 5 Combat Bots Only 4 | . 3 3 4 4 . 3 4 Max Kills in Single Turn 3 | . 1 2 2 1 . 3 3 Gunslinging 1 | . . 1 1 . . . . Exploded 3 | . . . . . . 3 2 Melee . | . . . . . . . . Uniques/NPCs Destroyed . | . . . . . . . . Combat | -11 -10 -10 -9 -9 -9 -8 -8 -------- Run | Yrd Mat Min Mat Min Exi Min Mat Hostile Shots Fired 342 | . 56 19 138 66 . 1 62 Missed 75 | . 10 5 36 15 . . 9 Damage Taken 3259 | . 537 116 1054 651 . 10 891 Core 2620 | . 434 93 844 527 . 8 714 Absorbed by Shields 571 | . . . 349 222 . . . Redirected to Core 2095 | . 331 70 665 394 . 8 627 Core Remaining (%) 55 | 100 . 41 . . . 25 . Volleys Fired 236 | . 39 7 112 32 . 1 45 Largest 2 | . 2 2 2 2 . 2 2 Hottest 70 | . 70 46 50 50 . 61 61 Shots Fired 472 | . 78 14 224 64 . 2 90 Gun 458 | . 68 14 224 64 . 1 87 Cannon 10 | . 10 . . . . . . Launcher 4 | . . . . . . 1 3 Special . | . . . . . . . . Kinetic 468 | . 78 14 224 64 . 1 87 Thermal . | . . . . . . . . Explosive 4 | . . . . . . 1 3 Electromagnetic . | . . . . . . . . Robot Hit Streak 52 | . 5 4 20 10 . . 52 Robot Miss Streak 6 | . 6 2 4 4 . . 1 Penetration Max . | . . . . . . . . Secondary Targets 9 | . 2 2 3 1 . . 1 Max Gunslinging Chain 1 | . 1 1 1 1 . . 1 Shots Hit Robots 314 | . 33 8 150 44 . . 79 Core Hits 142 | . 19 6 60 14 . 3 40 Critical Kills 1 | . . . . 1 . . . Critical Parts Destroyed 2 | . . . 1 1 . . . Critical Strikes 3 | . . . 1 2 . . . Destroy 3 | . . . 1 2 . . . Melee Attacks . | . . . . . . . . Impact . | . . . . . . . . Slashing . | . . . . . . . . Piercing . | . . . . . . . . Sneak Attacks . | . . . . . . . . Combat Hostiles . | . . . . . . . . Follow-up Attacks . | . . . . . . . . Damage Inflicted 5994 | . 457 134 2540 770 . 159 1934 Guns 5317 | . 384 134 2531 759 . 17 1492 Cannons 73 | . 73 . . . . . . Explosions 584 | . . . . . . 142 442 Melee . | . . . . . . . . Ramming 20 | . . . 9 11 . . . Kinetic 5390 | . 457 134 2531 759 . 17 1492 Thermal . | . . . . . . . . Explosive 584 | . . . . . . 142 442 Electromagnetic . | . . . . . . . . Impact . | . . . . . . . . Slashing . | . . . . . . . . Piercing . | . . . . . . . . Highest Corruption . | . . . . . . . . Average Corruption . | . . . . . . . . Corruption Purged . | . . . . . . . . Corruption Blocked . | . . . . . . . . Overload Shots . | . . . . . . . . Overflow Damage 1 | . . . . . . 1 . Projectiles . | . . . . . . . . Explosions 1 | . . . . . . 1 . Melee . | . . . . . . . . Knockbacks 1 | . . . . 1 . . . Impact 1 | . . . . 1 . . . Kinetic . | . . . . . . . . Secondary . | . . . . . . . . Self-Inflicted Damage . | . . . . . . . . Shots . | . . . . . . . . Rammed 5 | . . . 2 3 . . . Targets Rammed 5 | . . . 2 3 . . . Kicked . | . . . . . . . . Crushed . | . . . . . . . . Highest Temperature 105 | . 62 12 71 80 . 3 105 Average Temperature 21 | . 17 6 18 26 . 2 28 Received Heat Transfer 1399 | . 282 6 532 201 . . 378 Siege Activations . | . . . . . . . . Robots Corrupted . | . . . . . . . . Combat Hostiles . | . . . . . . . . Parts Fried . | . . . . . . . . Impact Corruptions . | . . . . . . . . Robots Melted . | . . . . . . . . Combat Hostiles . | . . . . . . . . Parts Melted . | . . . . . . . . Heat Transferred . | . . . . . . . . Parts Sabotaged . | . . . . . . . . Parts Stolen . | . . . . . . . . Parts Stripped . | . . . . . . . . Power Chain Reactions . | . . . . . . . . Alert | -11 -10 -10 -9 -9 -9 -8 -8 ------- Run | Yrd Mat Min Mat Min Exi Min Mat Peak Influence 566 | . 170 150 566 470 . 108 468 Initial 220 | . . 22 . 220 . . 41 Average 172 | . 43 58 224 323 . 106 259 Maximum Alert Level 2 | . . . 2 2 . . 2 Low Security (%) 61 | 100 100 100 53 . . 100 21 Level 1 30 | . . . 29 86 . . 73 Level 2 8 | . . . 17 13 . . 4 Level 3 . | . . . . . . . . Level 4 . | . . . . . . . . Level 5 . | . . . . . . . . High Security . | . . . . . . . . Max Security . | . . . . . . . . Squads Dispatched 14 | . 3 . 6 . . . 5 Investigation 7 | . 2 . 2 . . . 3 Extermination . | . . . . . . . . Reinforcement 6 | . 1 . 3 . . . 2 Assault 1 | . . . 1 . . . . Garrison . | . . . . . . . . Intercept . | . . . . . . . . Searches Triggered . | . . . . . . . . Construction Impeded 2 | . . . 1 . . . 1 Haulers Reinforced . | . . . . . . . . Active Scanning Responses . | . . . . . . . . Cargo Convoy Interrupts . | . . . . . . . . Stealth | -11 -10 -10 -9 -9 -9 -8 -8 --------- Run | Yrd Mat Min Mat Min Exi Min Mat Distress Signals 7 | . . . 4 . . . 3 Communications Jammed . | . . . . . . . . Distress Signals . | . . . . . . . . Times Spotted 129 | . 18 7 48 21 . 3 32 Peak Tracking Total 14 | . 3 3 5 14 . 3 7 Tactical Retreats 6 | . . . 1 2 . . 3 Traps | -11 -10 -10 -9 -9 -9 -8 -8 ------- Run | Yrd Mat Min Mat Min Exi Min Mat Traps Triggered 4 | . 2 . 1 . . . 1 Indirectly . | . . . . . . . . Trap Hack Attempts . | . . . . . . . . Triggered . | . . . . . . . . Disarmed 5 | . 2 . 3 . . . . Reprogrammed . | . . . . . . . . Reused . | . . . . . . . . Traps Extracted . | . . . . . . . . Installed . | . . . . . . . . Triggered . | . . . . . . . . Machines | -11 -10 -10 -9 -9 -9 -8 -8 ---------- Run | Yrd Mat Min Mat Min Exi Min Mat Machines Disabled 2 | . . . 1 . . 1 . Max in Single Turn 1 | . . . 1 . . 1 . Machines Repaired . | . . . . . . . . Machines Dismantled . | . . . . . . . . Machines Sabotaged . | . . . . . . . . Overloaded Fab Kills . | . . . . . . . . Hacking | -11 -10 -10 -9 -9 -9 -8 -8 --------- Run | Yrd Mat Min Mat Min Exi Min Mat Machines Accessed 22 | . 7 1 9 . 1 . 4 Terminals 20 | . 7 . 9 . . . 4 Fabricators . | . . . . . . . . Repair Stations . | . . . . . . . . Recycling Units . | . . . . . . . . Scanalyzers . | . . . . . . . . Garrison Access . | . . . . . . . . Total Hacks 62 | . 17 1 28 . 1 . 15 Successful 21 | . 4 1 10 . 1 . 5 Failed 41 | . 13 . 18 . . . 10 Catastrophic 13 | . 6 . 3 . . . 4 Database Lockouts . | . . . . . . . . Manual 48 | . 16 . 16 . 1 . 15 Terminals 60 | . 17 . 28 . . . 15 Fabricators . | . . . . . . . . Repair Stations . | . . . . . . . . Recycling Units . | . . . . . . . . Scanalyzers . | . . . . . . . . Garrison Access . | . . . . . . . . Terminal Hacks 21 | . 4 1 10 . 1 . 5 Open Door 1 | . . 1 . . . . . Branch Access Points 2 | . . . 1 . . . 1 Emergency Access Points 1 | . . . 1 . . . . Terminal Index 3 | . 1 . 1 . . . 1 Alert Level 4 | . . . 2 . . . 2 Disarm Traps 5 | . 2 . 3 . . . . Recall Investigation 1 | . . . . . . . 1 Hauler Manifests 2 | . 1 . 1 . . . . Registered Components 1 | . . . 1 . . . . Derelict Proto ID Bank 1 | . . . . . 1 . . Fabricator Hacks . | . . . . . . . . Repair Station Hacks . | . . . . . . . . Recycling Unit Hacks . | . . . . . . . . Scanalyzer . | . . . . . . . . Garrison Access Hacks . | . . . . . . . . Unauthorized Hacks . | . . . . . . . . Terminals . | . . . . . . . . Fabricators . | . . . . . . . . Repair Stations . | . . . . . . . . Recycling Units . | . . . . . . . . Scanalyzers . | . . . . . . . . Garrison Access . | . . . . . . . . Data Cores Recovered . | . . . . . . . . Used . | . . . . . . . . Hacking Detections 20 | . 7 . 9 . . . 4 Full Trace Events 6 | . 1 . 3 . . . 2 Feedback Events . | . . . . . . . . Feedback Blocked . | . . . . . . . . Robot Schematics Acquired . | . . . . . . . . Robots Built . | . . . . . . . . Authchips . | . . . . . . . . Time . | . . . . . . . . Total Robot Build Rating . | . . . . . . . . Part Schematics Acquired . | . . . . . . . . Parts Built . | . . . . . . . . Authchips . | . . . . . . . . Time . | . . . . . . . . Total Part Build Rating . | . . . . . . . . Parts Repaired . | . . . . . . . . Time . | . . . . . . . . Parts Recycled . | . . . . . . . . Recycled Matter . | . . . . . . . . Retrieved Matter . | . . . . . . . . Retrieved Components . | . . . . . . . . Parts Scanalyzed . | . . . . . . . . Part Schematics Acquired . | . . . . . . . . Parts Damaged . | . . . . . . . . Bothacking | -11 -10 -10 -9 -9 -9 -8 -8 ------------ Run | Yrd Mat Min Mat Min Exi Min Mat Used RIF Installer . | . . . . . . . . Robots Hacked . | . . . . . . . . Non-combat . | . . . . . . . . Combat . | . . . . . . . . Robot Hacks Applied . | . . . . . . . . Relay Couplers Released . | . . . . . . . . Fabnet Peak Effective % . | . . . . . . . . Robots Rewired . | . . . . . . . . Allies Hacked . | . . . . . . . . Hacks Repelled . | . . . . . . . . Allies | -11 -10 -10 -9 -9 -9 -8 -8 -------- Run | Yrd Mat Min Mat Min Exi Min Mat Total Allies 3 | . . 3 . . . . . Largest Group 3 | . . 3 3 . . . . Highest-Rated Group 40 | . . 40 40 . . . . Highest-Rated Ally 16 | . . 16 16 . . . . Total Orders . | . . . . . . . . Ally Attacks 23 | . . 11 12 . . . . Total Damage 180 | . . 91 89 . . . . Kills 2 | . . 2 . . . . . Allies Corrupted . | . . . . . . . . Allies Melted . | . . . . . . . . Intel | -11 -10 -10 -9 -9 -9 -8 -8 ------- Run | Yrd Mat Min Mat Min Exi Min Mat Robot Analysis Total . | . . . . . . . . Derelict Logs Recovered 1 | . . 1 . . . . . Drone Launches . | . . . . . . . . Drone Recoveries . | . . . . . . . . Exploration | -11 -10 -10 -9 -9 -9 -8 -8 ------------- Run | Yrd Mat Min Mat Min Exi Min Mat Turns Passed 6357 | 68 1275 928 2101 757 302 143 783 Spaces Moved 3437 | 47 696 561 1080 452 208 95 298 Core 14 | 14 . . . . . . . Treads 3423 | 33 696 561 1080 452 208 95 298 Legs . | . . . . . . . . Wheels . | . . . . . . . . Hover . | . . . . . . . . Flight . | . . . . . . . . Fastest Speed 50 | 50 160 160 145 145 145 145 145 Average Speed 151 | 127 160 160 150 145 145 145 145 Slowest Speed 160 | 160 160 160 160 145 145 145 145 Overloaded Moves . | . . . . . . . . Propulsion Burnouts . | . . . . . . . . Robots Hopped . | . . . . . . . . Cave-ins Triggered . | . . . . . . . . Exploration Rate (%) 60 | 4 99 98 96 78 41 35 29 Regions Visited 7 Branch Regions 4 Pre-discovered Areas 1 | . . 1 . . . . . Known Exits Taken 6 | . 1 1 1 1 1 1 . Unknown Exits Taken 1 | 1 . . . . . . . Scrap Searched 2 | . . 1 . 1 . . . Spaces Dug . | . . . . . . . . Terrain Destroyed 36 | . . . . . . 13 23 Melee . | . . . . . . . . Projectile . | . . . . . . . . AOE 36 | . . . . . . 13 23 Terrain Rammed . | . . . . . . . . Walls Destroyed . | . . . . . . . . Machines Disabled . | . . . . . . . . Actions | -11 -10 -10 -9 -9 -9 -8 -8 --------- Run | Yrd Mat Min Mat Min Exi Min Mat Total 4185 | 54 789 581 1380 501 208 97 575 Wait 355 | . 34 1 108 5 . . 207 Move 3430 | 46 695 560 1079 451 207 94 298 Hop . | . . . . . . . . Pick Up 18 | 3 9 2 3 . . . 1 Fast Attach 4 | 2 . . 1 . . . 1 Attach 7 | 3 2 . 1 . . . 1 Detach . | . . . . . . . . Swap 20 | . 6 . 5 . 1 2 6 Drop 16 | . 4 2 7 . . . 3 Fire 236 | . 39 7 112 32 . 1 45 Melee . | . . . . . . . . Ram . | . . . . . . . . Kick . | . . . . . . . . Crush 5 | . . . 2 3 . . . Escape Stasis . | . . . . . . . . Rewire . | . . . . . . . . Trap . | . . . . . . . . Miscellaneous 94 | . . 9 62 10 . . 13 Route ------- -11/Scrapyard -10/Materials (discovered 6 exits: *Mat x3 / *Min x2 / *Sub) -10/Mines (discovered 3 exits: *Mat x2 / *Sub) -9/Materials (discovered 5 exits: *Mat x3 / *Min / *Sto) -9/Mines (discovered 4 exits: *Mat x2 / *Exi / *Zio) -9/Exiles -8/Mines -8/Materials (discovered 1 exit: [*Fac]) History --------- Turn | Location | Event 1 | -11/Scrapyard | Upgraded with Propulsion slot (x1) 1 | -11/Scrapyard | Upgraded with Utility slot (x1) 1 | -11/Scrapyard | Upgraded with Weapon slot (x1) 12 | -11/Scrapyard | Discovered new exit (range 15) 69 | -11/Scrapyard | Entered Materials 191 | -10/Materials | Core integrity fell below 50% 316 | -10/Materials | Build established: Mutant 423 | -10/Materials | Discovered new exit (range 9) 666 | -10/Materials | Discovered new exit (range 16) 916 | -10/Materials | Discovered new exit (range 16) 938 | -10/Materials | Identified exit to Materials 1029 | -10/Materials | Discovered new exit (range 11) 1284 | -10/Materials | Discovered new exit (range 16) 1319 | -10/Materials | Discovered exit to Materials (range 15) 1328 | -10/Materials | Identified exit to Mines 1344 | -10/Materials | Entered Mines 1346 | -10/Mines | Reached level 2 1377 | -10/Mines | Met a Derelict bent on vengeance 1423 | -10/Mines | Core integrity fell below 20% 1558 | -10/Mines | Assisted by bots powering up and referring to "LRC-V3" 1693 | -10/Mines | Received a Rocket Launcher from a helpful Derelict 1818 | -10/Mines | Discovered exit to Materials (range 10) 1849 | -10/Mines | Discovered exit to Materials (range 8) 1977 | -10/Mines | Met a Derelict who couldn't figure out how to use a Trap Extractor 2025 | -10/Mines | Discovered new exit (range 6) 2030 | -10/Mines | Identified exit to Subcaves 2088 | -10/Mines | A weapon hastily lodged in a ceiling crevice suddenly fell to the ground 2272 | -10/Mines | Entered Materials 2272 | -9/Materials | Accompanied by 3 allies 2273 | -9/Materials | Core integrity fell below 50% 2274 | -9/Materials | Reached level 3 2279 | -9/Materials | Upgraded with Utility slot (x1) 2332 | -9/Materials | Reached level 4 2738 | -9/Materials | Discovered new exit (range 16) 2785 | -9/Materials | Identified exit to Mines 2865 | -9/Materials | Discovered new exit (range 15) 2890 | -9/Materials | Identified exit to Storage 3003 | -9/Materials | Reached level 5 3116 | -9/Materials | Discovered new exit (range 16) 3630 | -9/Materials | Discovered new exit (range 12) 3644 | -9/Materials | Identified exit to Materials 3784 | -9/Materials | Reached level 6 4196 | -9/Materials | Discovered exit to Materials (range 13) 4272 | -9/Materials | First assault squad dispatched 4329 | -9/Materials | Reached level 7 4373 | -9/Materials | Entered Mines 4374 | -9/Mines | Assembled infested the area 4486 | -9/Mines | Discovered exit to Materials (range 3) 4689 | -9/Mines | Reached level 8 4699 | -9/Mines | Discovered exit to Materials (range 12) 4858 | -9/Mines | A Derelict revealed a hidden shortcut to a safe place 4863 | -9/Mines | Identified exit to Zion 5049 | -9/Mines | Found a hidden stash of uninstalled traps 5123 | -9/Mines | Deemed a non-threat by the Exiles lab entrance 5124 | -9/Mines | Discovered new exit (range 5) 5129 | -9/Mines | Identified exit to Exiles 5130 | -9/Mines | Entered Exiles 5167 | -9/Exiles | Met 8R-AWN 5191 | -9/Exiles | Met EX-HEX 5229 | -9/Exiles | Met EX-BIN 5246 | -9/Exiles | Aligned with FarCom system 5248 | -9/Exiles | Given EX-Vault access code 5281 | -9/Exiles | Opened EX-Vault 5290 | -9/Exiles | Found Skeleton Box 5322 | -9/Exiles | Warned to stay clear of 0b10 Research branches 5415 | -9/Exiles | Discovered new exit (range 14) 5431 | -9/Exiles | Identified exit to Mines 5432 | -9/Exiles | Left Exiles lab with Skeleton Box 5432 | -9/Exiles | Entered Mines 5553 | -8/Mines | Discovered exit to Materials (range 10) 5575 | -8/Mines | Entered Materials 5576 | -8/Materials | Core integrity fell below 50% 5577 | -8/Materials | Reached level 9 5577 | -8/Materials | Upgraded with Utility slot (x1) 5697 | -8/Materials | Core integrity fell below 20% 5702 | -8/Materials | Reached level 10 5737 | -8/Materials | Build established: Skirmisher 6026 | -8/Materials | Reached level 11 6339 | -8/Materials | Discovered new exit (range 15) 6358 | -8/Materials | Destroyed by G-47 Trooper with Particle Gun Last Messages --------------- 06334_ U-05 Engineer lays Concrete. [Achievement: Party Time] 06336_ U-05 Engineer lays Concrete. 06339_ H-55 Commando destroyed. 06339_ EXIT=FOUND 06339_ U-05 Engineer lays Concrete. 06339_ ALERT: Construction progress impeded, dispatching reinforcements to local area. 06340_ Terminal disabled. 06340_ U-05 Engineer lays Concrete. 06342_ G-47 Trooper destroyed. 06342_ U-05 Engineer destroyed. 06342_ K-01 Serf collects debris. 06344_ R-06 Scavenger collects Aluminum Leg. 06345_ G-47 Trooper destroyed. 06347_ K-01 Serf collects debris. 06349_ R-06 Scavenger collects Particle Gun. 06352_ K-01 Serf collects debris. 06352_ R-06 Scavenger collects Carbon-fiber Leg. 06355_ K-01 Serf collects debris. Map ----- +----------------------------------------------------+ | | | | | | | | | ?????????????????????????????????????????????????? | | ?????????????????????????????????????????????????? | | ?????????????????????????????????????????????????? | | ?????????????????????????????????????????????????? | | ?????????????????????????????????????????????????? | | ?????????????????????????????????????????????????? | | ###??????????????????????????????????????????????? | | #??????????????????????????????????????????????? | | #??????????????????????????????????????????????? | | #?##########???????????????????????????????????? | | #?# """ #???????????????????????????????????? | | #?# "T" #???????????????????????????????????? | | #?# #???????????????????????????????????? | | #?# #???????????????????#??? ??????????? | | #?# #?????????????????? #?? < ?????????? | | ### ! """ #????????????????? # ?????????? | | + """ #????????????????? r #????????? | | ### """ #???????????????? % % #????????? | | #?#/ #???????????????? % ????????? | | #######+#################### %[! #????????? | | g g !=%* #????????? | | g @ !%* #?????????? | | #######+################ a k= #??????????? | | #??# # # ## ????????? | | #??# ] # # /] ??????? | | #??# # """ """ # /! ! ??????? | | ##?# ! """"" # """ """ # * / a ??????? | | #?# """"" # """ """ # #"T"####### ???????? | | ### """"" # # #"""#???????????????? | | + % # # #####???????????????? | | ### + # #???????????????????? | | %##?##############o###### #?????????????u?????? | | % ############## #### #???????????????????? | | % u #???????????????????? | | % #???????????????????? | | %%% #???????????????????? | | ##########+### ] ########???????????????????? | | ###?????# =!%%=## ##??????????????????????????? | | #???????# "T"% ## #########?????????????????u?? | | #???????# ## # #???????????????????? | | #???????# ## + #????u??u???????????? | | #???????# ##h # #???????????????????? | | #???????# ## #??????##???????????????????? | | #????############ #???????????????????????????? | | #????# #???# %#???????????????????????????? | | #????#!!! #???# #?????????Y?????????????????? | +----------------------------------------------------+ Best States ------------- Heat Dissipation 25 Energy Generation 14 Energy Capacity 280 Matter Stores 300 Matter Capacity 300 Sight Range 16 Robot Scan Range 35 Terrain Scan Density 10 Armor Coverage 150 Weapon Shielding 33 Evasion (%) 50 Recoil Reduction 2 Offensive Hacking 10 Item Schematics ----------------- None Robot Schematics ------------------ None Fabricated ------------ Nothing Alien Tech Used ----------------- None Achievements -------------- Party Time Challenges ------------ None RPGLIKE | -11 -10 -10 -9 -9 -9 -8 -8 --------- Run | Yrd Mat Min Mat Min Exi Min Mat Levels Raised 10 | . . 1 5 1 . . 3 XP Earned 18368 | 3000 1170 1454 6462 1575 243 925 3539 XP Spent 17850 | 3000 . 1350 1200 6800 . . 5500 Upgrades 37 | 6 . 9 2 8 . . 12 Propulsion Slot 1 | 1 . . . . . . . Utility Slot 3 | 1 . . 1 . . . 1 Weapon Slot 1 | 1 . . . . . . . Core Integrity 5 | . . . . . . . 5 Inventory Capacity 3 | 3 . . . . . . . Sensor Range 10 | . . 9 . . . . 1 Ranged Accuracy 10 | . . . 1 8 . . 1 KI Damage % 4 | . . . . . . . 4 Protomatter Created 913 | . . 30 582 67 . . 234 Integrity Restored 1936 | . . 174 1255 201 . . 306 Core 1762 | . . 174 1081 201 . . 306 Parts 174 | . . . 174 . . . . Protomatter Decayed 295 | . . . 180 12 . . 103 Game ------ Seed CobblerVortexAnalyzer Manual? 0 Play Time 00:37:49 Cumulative 33.7 hours Start 2025.03.24 @ 13:13:37 End 2025.03.24 @ 13:48:34 Sessions 1 Manual Loads 0 Difficulty Rogue Special Mode Winter2019/RPGLIKE Game No. 58 Rogue 58 Adventurer 0 Explorer 0 Win Type - Total 0 Types 0/0/0/0/0/0/0/0/0 Lore% 13 Gallery% 25 Achievement% 28 Wizard Run 0 Options --------- Layout 0 ASCII 0 Keyboard 0 Movement Mouse Keybinds 0 Fullscreen 1 Font 24/Smallcaps Map View 76x56 Zoom Use 0% Tactical HUD 1 Map Filters NONE Filters NONE Steam 1 RUN: 30f1aba9-2189-4225-a63c-3cceb15e14b2